fUST/lending_fUST_20240818
["ID","MTS","AMOUNT","RATE_DAILY","PERIOD"]
[335209274,1723979465943,-508.97644502,0.00017534,2]
[335209275,1723979465952,-500.0,0.00017534,2]
[335209276,1723979465961,-500.0,0.00017534,2]
[335209277,1723979465971,-577.38847337,0.00017534,2]
[335209278,1723979465981,-500.0,0.00017534,2]
[335209279,1723979465990,-500.0,0.00017534,2]
[335209280,1723979465999,-500.0,0.00017534,2]
[335209281,1723979466009,-805.33,0.00017534,2]
[335209282,1723979466018,-500.0,0.00017534,2]
[335209283,1723979466028,-500.0,0.00017534,2]
[335209284,1723979466037,-566.71,0.00017534,2]
[335209285,1723979466047,-500.0,0.00017534,2]
[335209286,1723979466056,-500.0,0.00017534,2]
[335209287,1723979466065,-500.0,0.00017534,2]
[335209288,1723979466075,-500.0,0.00017534,2]
[335209289,1723979466084,-559.7209779,0.00017534,2]
[335209290,1723979466094,-500.0,0.00017534,2]
[335209291,1723979466103,-633.4168095,0.00017534,2]
[335209292,1723979466114,-516.71754299,0.00017534,2]
[335209293,1723979466123,-500.0,0.00017534,2]
[335209294,1723979466133,-500.0,0.00017534,2]
[335209295,1723979466142,-500.0,0.00017534,2]
[335209296,1723979466152,-500.0,0.00017534,2]
[335209297,1723979466162,-500.0,0.00017534,2]
[335209298,1723979466172,-500.0,0.00017534,2]
[335209299,1723979466181,-500.0,0.00017534,2]
[335209300,1723979466190,-500.0,0.00017534,2]
[335209301,1723979466200,-500.0,0.00017534,2]
[335209302,1723979466209,-1108.64,0.00017534,2]
[335209303,1723979466219,-500.0,0.00017534,2]
[335209304,1723979466229,-582.5,0.00017534,2]
[335209305,1723979466238,-934.91,0.00017534,2]
[335209306,1723979466248,-500.0,0.00017534,2]
[335209307,1723979466258,-500.0,0.00017534,2]
[335209308,1723979466267,-1000.0,0.00017534,2]
[335209309,1723979466277,-500.0,0.00017534,2]
[335209310,1723979466286,-500.0,0.00017534,2]
[335209311,1723979466296,-476.46842798,0.00017534,2]
[335209312,1723979466306,-500.0,0.00017534,2]
[335209313,1723979466315,-885.71,0.00017534,2]
[335209314,1723979466325,-500.0,0.00017534,2]
[335209315,1723979466334,-503.2599814,0.00017534,2]
[335209316,1723979466343,-500.0,0.00017534,2]
[335209317,1723979466353,-500.0,0.00017534,2]
[335209318,1723979466364,-500.0,0.00017534,2]
[335209319,1723979466381,-500.0,0.00017534,2]
[335209320,1723979466398,-709.34,0.00017534,2]
[335209321,1723979466416,-500.0,0.00017534,2]
[335209322,1723979466435,-500.0,0.00017534,2]
[335209323,1723979466454,-509.52992601,0.00017534,2]
[335209324,1723979466472,-500.0,0.00017534,2]
[335209325,1723979466490,-1344.65,0.00017534,2]
[335209326,1723979466507,-500.0,0.00017534,2]
[335209327,1723979466523,-500.0,0.00017534,2]
[335209328,1723979466542,-500.0,0.00017534,2]
[335209329,1723979466561,-694.89,0.00017534,2]
[335209330,1723979466573,-500.0,0.00017534,2]
[335209331,1723979466593,-500.0,0.00017534,2]
[335209332,1723979466610,-936.29,0.00017534,2]
[335209333,1723979466625,-1200.92,0.00017534,2]
[335209334,1723979466638,-621.07,0.00017534,2]
[335209335,1723979466655,-504.60094389,0.00017534,2]
[335209336,1723979466671,-500.0,0.00017534,2]
[335209337,1723979466686,-500.0,0.00017534,2]
[335209338,1723979466700,-500.0,0.00017534,2]
[335209339,1723979466715,-1214.6,0.00017534,2]
[335209340,1723979466729,-1409.37,0.00017534,2]
[335209341,1723979466745,-500.0,0.00017534,2]
[335209342,1723979466759,-500.0,0.00017534,2]
[335209343,1723979466774,-666.89,0.00017534,2]
[335209344,1723979466788,-500.0,0.00017534,2]
[335209345,1723979466803,-500.0,0.00017534,2]
[335209346,1723979466818,-500.0,0.00017534,2]
[335209347,1723979466833,-500.0,0.00017534,2]
[335209348,1723979466849,-500.0,0.00017534,2]
[335209349,1723979466863,-500.0,0.00017534,2]
[335209350,1723979466877,-500.0,0.00017534,2]
[335209351,1723979466893,-1362.27,0.00017534,2]
[335209352,1723979466907,-1133.98,0.00017534,2]
[335209353,1723979466921,-500.0,0.00017534,2]
[335209354,1723979466937,-4647.9,0.00017534,2]
[335209355,1723979466951,-603.56,0.00017534,2]
[335209356,1723979466967,-555.08,0.00017534,2]
[335209357,1723979466981,-500.0,0.00017534,2]
[335209358,1723979466996,-500.0,0.00017534,2]
[335209359,1723979467010,-1319.09,0.00017534,2]
[335209360,1723979467025,-500.0,0.00017534,2]
[335209361,1723979467036,-500.0,0.00017534,2]
[335209362,1723979467046,-500.0,0.00017534,2]
[335209363,1723979467056,-500.0,0.00017534,2]
[335209364,1723979467066,-500.0,0.00017534,2]
[335209365,1723979467076,-1176.95,0.00017534,2]
[335209366,1723979467086,-500.0,0.00017534,2]
[335209367,1723979467096,-500.0,0.00017534,2]
[335209368,1723979467106,-773.17,0.00017534,2]
[335209369,1723979467115,-500.0,0.00017534,2]
[335209370,1723979467125,-2171.88,0.00017534,2]
[335209371,1723979467135,-595.36,0.00017534,2]
[335209372,1723979467145,-500.0,0.00017534,2]
[335209373,1723979467155,-931.18,0.00017534,2]
[335209374,1723979467166,-665.07,0.00017534,2]
[335209375,1723979467175,-1489.85,0.00017534,2]
[335209376,1723979467185,-500.0,0.00017534,2]
[335209377,1723979467194,-3211.23,0.00017534,2]
[335209378,1723979467204,-500.0,0.00017534,2]
[335209379,1723979467214,-500.0,0.00017534,2]
[335209380,1723979467224,-500.0,0.00017534,2]
[335209381,1723979467234,-930.16,0.00017534,2]
[335209382,1723979467244,-1997.88,0.00017534,2]
[335209383,1723979467465,-917.17,0.00017534,2]
[335209384,1723979467481,-500.0,0.00017534,2]
[335209385,1723979467491,-500.0,0.00017534,2]
[335209386,1723979467500,-500.0,0.00017534,2]
[335209387,1723979467514,-500.0,0.00017534,2]
[335209388,1723979467524,-500.0,0.00017534,2]
[335209389,1723979467534,-602.66,0.00017534,2]
[335209390,1723979467543,-500.0,0.00017534,2]
[335209391,1723979467553,-500.0,0.00017534,2]
[335209392,1723979467563,-500.0,0.00017534,2]
[335209393,1723979467572,-1241.55,0.00017534,2]
[335209394,1723979467584,-643.82,0.00017534,2]
[335209395,1723979467595,-504.56767197,0.00017534,2]
[335209396,1723979467604,-607.78,0.00017534,2]
[335209397,1723979467614,-655.66,0.00017534,2]
[335209398,1723979467623,-3800.24766711,0.00017534,2]
[335209399,1723979467941,-553.34,0.00016438,2]
[335209400,1723979467951,-553.34,0.00016712,2]
[335209401,1723979467961,-553.34,0.00016986,2]
[335209402,1723979467970,-553.34,0.0001726,2]
[335209403,1723979467980,-3639.93233289,0.00017534,2]
[335209404,1723979467990,-1029.95,0.00017534,2]
[335209405,1723979468001,-502.95311286,0.00017534,2]
[335209406,1723979468011,-500.0,0.00017534,2]
[335209407,1723979468020,-500.0,0.00017534,2]
[335209408,1723979468030,-1019.02,0.00017534,2]
[335209409,1723979468039,-500.0,0.00017534,2]
[335209410,1723979468049,-1026.7,0.00017534,2]
[335209411,1723979468059,-500.0,0.00017534,2]
[335209412,1723979468068,-1063.7,0.00017534,2]
[335209413,1723979468077,-500.0,0.00017534,2]
[335209414,1723979468087,-500.0,0.00017534,2]
[335209415,1723979468097,-500.0,0.00017534,2]
[335209416,1723979468106,-500.0,0.00017534,2]
[335209417,1723979468116,-579.89,0.00017534,2]
[335209418,1723979468127,-514.77663133,0.00017534,2]
[335209419,1723979468137,-706.05,0.00017534,2]
[335209420,1723979468146,-668.29,0.00017534,2]
[335209421,1723979468158,-1230.19,0.00017534,2]
[335209422,1723979468169,-500.0,0.00017534,2]
[335209423,1723979468178,-500.0,0.00017534,2]
[335209424,1723979468187,-2221.95,0.00017534,2]
[335209425,1723979468196,-500.0,0.00017534,2]
[335209426,1723979468206,-500.0,0.00017534,2]
[335209427,1723979468215,-2766.47,0.00017534,2]
[335209428,1723979468225,-888.46,0.00017534,2]
[335209429,1723979468235,-502.02352431,0.00017534,2]
[335209430,1723979468244,-500.0,0.00017534,2]
[335209431,1723979468254,-201.396666,0.00017534,2]
[335209432,1723979468263,-201.396666,0.00017534,2]
[335209433,1723979468273,-500.0,0.00017534,2]
[335209434,1723979468283,-837.87,0.00017534,2]
[335209435,1723979468294,-798.58,0.00017534,2]
[335209436,1723979468305,-677.44,0.00017534,2]
[335209437,1723979468314,-699.53,0.00017534,2]
[335209438,1723979468324,-500.0,0.00017534,2]
[335209439,1723979468334,-670.56,0.00017534,2]
[335209440,1723979468343,-500.0,0.00017534,2]
[335209441,1723979468353,-751.19,0.00017534,2]
[335209442,1723979468362,-500.0,0.00017534,2]
[335209443,1723979468372,-500.0,0.00017534,2]
[335209444,1723979468382,-500.0,0.00017534,2]
[335209445,1723979468392,-500.0,0.00017534,2]
[335209446,1723979468401,-954.92,0.00017534,2]
[335209447,1723979468412,-500.0,0.00017534,2]
[335209448,1723979468423,-759.09,0.00017534,2]
[335209449,1723979468433,-549.29323674,0.00017534,2]
[335209450,1723979468444,-1068.78,0.00017534,2]
[335209451,1723979468455,-750.43,0.00017534,2]
[335209452,1723979468464,-1990.91,0.00017534,2]
[335209453,1723979468473,-880.39,0.00017534,2]
[335209454,1723979468483,-500.0,0.00017534,2]
[335209455,1723979468494,-500.0,0.00017534,2]
[335209456,1723979468505,-500.0,0.00017534,2]
[335209457,1723979468518,-854.51,0.00017534,2]
[335209458,1723979468528,-829.06,0.00017534,2]
[335209459,1723979468538,-500.0,0.00017534,2]
[335209460,1723979468548,-814.14,0.00017534,2]
[335209461,1723979468559,-500.0,0.00017534,2]
[335209462,1723979468569,-757.9,0.00017534,2]
[335209463,1723979468579,-500.0,0.00017534,2]
[335209464,1723979468589,-500.0,0.00017534,2]
[335209465,1723979468598,-500.0,0.00017534,2]
[335209466,1723979468607,-500.0,0.00017534,2]
[335209467,1723979468617,-500.0,0.00017534,2]
[335209468,1723979468626,-500.0,0.00017534,2]
[335209469,1723979468636,-500.0,0.00017534,2]
[335209470,1723979468645,-500.0,0.00017534,2]
[335209471,1723979468655,-500.0,0.00017534,2]
[335209472,1723979468666,-715.7,0.00017534,2]
[335209473,1723979468675,-553.34,0.00017534,2]
[335209474,1723979468685,-500.0,0.00017593,2]
[335209475,1723979468694,-1990.91473995,0.000176,2]
[335209476,1723979468704,-465.63870531,0.00017639,2]
[335209477,1723979468715,-1414.0,0.00017733,2]
[335209478,1723979468727,-8341.909,0.00017733,2]
[335209479,1723979468737,-500.0,0.00017808,2]
[335209480,1723979468747,-196.32936552,0.00017808,2]
[335209481,1723979468758,-500.0,0.00017808,2]
[335209482,1723979468767,-500.0,0.00017808,2]
[335209483,1723979468777,-500.0,0.00017808,2]
[335209484,1723979468786,-500.0,0.00017808,2]
[335209485,1723979468796,-500.0,0.00017808,2]
[335209486,1723979468806,-500.0,0.00017808,2]
[335209487,1723979468815,-500.0,0.00017808,2]
[335209488,1723979468824,-500.0,0.00017808,2]
[335209489,1723979468833,-500.0,0.00017808,2]
[335209490,1723979468845,-500.0,0.00017808,2]
[335209491,1723979468854,-500.0,0.00017808,2]
[335209492,1723979468863,-892.11,0.00017808,2]
[335209493,1723979468873,-373.20994322,0.00017808,2]
[335209494,1723979468882,-500.0,0.00017808,2]
[335209495,1723979468892,-500.0,0.00017808,2]
[335209496,1723979468902,-790.36,0.00017808,2]
[335209497,1723979468912,-500.0,0.00017808,2]
[335209498,1723979468922,-500.0,0.00017808,2]
[335209499,1723979468931,-500.0,0.00017808,2]
[335209500,1723979468943,-571.35,0.00017808,2]
[335209501,1723979468953,-500.0,0.00017808,2]
[335209502,1723979468964,-500.0,0.00017808,2]
[335209503,1723979468974,-500.0,0.00017808,2]
[335209504,1723979468984,-500.0,0.00017808,2]
[335209505,1723979468993,-500.0,0.00017808,2]
[335209506,1723979469003,-500.0,0.00017808,2]
[335209507,1723979469013,-733.98,0.00017808,2]
[335209508,1723979469023,-500.0,0.00017808,2]
[335209509,1723979469032,-554.7699181,0.00017808,2]
[335209510,1723979469041,-500.0,0.00017808,2]
[335209511,1723979469051,-529.81,0.00017808,2]
[335209512,1723979469060,-151.0,0.00017808,2]
[335209513,1723979469069,-500.0,0.00017808,2]
[335209514,1723979469079,-287.390957,0.00017808,2]
[335209515,1723979469088,-332.3463674,0.00017808,2]
[335209516,1723979469098,-500.0,0.00017808,2]
[335209517,1723979469107,-719.11,0.00017808,2]
[335209518,1723979469116,-500.0,0.00017808,2]
[335209519,1723979469126,-500.0,0.00017808,2]
[335209520,1723979469135,-500.0,0.00017808,2]
[335209521,1723979469144,-662.22,0.00017808,2]
[335209522,1723979469153,-500.0,0.00017808,2]
[335209523,1723979469163,-500.0,0.00017808,2]
[335209524,1723979469173,-538.36,0.00017808,2]
[335209525,1723979469182,-994.27,0.00017808,2]
[335209526,1723979469192,-1007.76,0.00017808,2]
[335209527,1723979469202,-500.0,0.00017808,2]
[335209528,1723979469212,-500.0,0.00017808,2]
[335209529,1723979469222,-666.68,0.00017808,2]
[335209530,1723979469231,-513.97,0.00017808,2]
[335209531,1723979469241,-500.0,0.00017808,2]
[335209532,1723979469252,-667.83,0.00017808,2]
[335209533,1723979469261,-500.0,0.00017808,2]
[335209534,1723979469271,-500.0,0.00017808,2]
[335209535,1723979469281,-255.68707378,0.00017808,2]
[335209536,1723979469291,-500.0,0.00017808,2]
[335209537,1723979469300,-515.51,0.00017808,2]
[335209538,1723979469310,-500.0,0.00017808,2]
[335209539,1723979469319,-500.0,0.00017808,2]
[335209540,1723979469330,-500.0,0.00017808,2]
[335209541,1723979469339,-500.0,0.00017808,2]
[335209542,1723979469349,-500.0,0.00017808,2]
[335209543,1723979469359,-500.0,0.00017808,2]
[335209544,1723979469369,-699.21,0.00017808,2]
[335209545,1723979469378,-500.0,0.00017808,2]
[335209546,1723979469388,-512.47937746,0.00017808,2]
[335209547,1723979469397,-502.82810063,0.00017808,2]
[335209548,1723979469407,-835.69,0.00017808,2]
[335209549,1723979469416,-681.64,0.00017808,2]
[335209550,1723979469426,-667.86,0.00017808,2]
[335209551,1723979469436,-500.0,0.00017808,2]
[335209552,1723979469446,-500.0,0.00017808,2]
[335209553,1723979469455,-2005.0,0.00017808,10]
[335209554,1723979469465,-500.0,0.00017808,2]
[335209555,1723979469475,-500.0,0.00017808,2]
[335209556,1723979469485,-200.0,0.00017808,2]
[335209557,1723979469494,-500.0,0.00017808,2]
[335209558,1723979469504,-500.0,0.00017808,2]
[335209559,1723979469517,-500.0,0.00017808,2]
[335209560,1723979469527,-500.0,0.00017808,2]
[335209561,1723979469536,-697.49,0.00017808,2]
[335209562,1723979469546,-720.31,0.00017808,2]
[335209563,1723979469555,-570.82,0.00017808,2]
[335209564,1723979469565,-756.2,0.00017808,2]
[335209565,1723979469574,-607.67760922,0.00017808,2]
[335209566,1723979469585,-1189.78,0.00017808,2]
[335209567,1723979469691,-500.0,0.00017808,2]
[335209568,1723979469701,-500.0,0.00017808,2]
[335209569,1723979469711,-1408.37,0.00017808,2]
[335209570,1723979469720,-620.88,0.00017808,2]
[335209571,1723979469731,-500.0,0.00017808,2]
[335209572,1723979469740,-518.08165798,0.00017808,2]
[335209573,1723979469750,-500.0,0.00017808,2]
[335209574,1723979469760,-526.73,0.00017808,2]
[335209575,1723979469769,-561.73536953,0.00017808,2]
[335209576,1723979469778,-704.33,0.00017808,2]
[335209577,1723979469787,-500.0,0.00017808,2]
[335209578,1723979469798,-500.0,0.00017808,2]
[335209579,1723979469807,-607.24,0.00017808,2]
[335209580,1723979469816,-741.17,0.00017808,2]
[335209581,1723979469826,-973.79,0.00017808,2]
[335209582,1723979469835,-688.92,0.00017808,2]
[335209583,1723979469846,-500.0,0.00017808,2]
[335209584,1723979469856,-500.0,0.00017808,2]
[335209585,1723979469867,-718.41,0.00017808,2]
[335209586,1723979469877,-500.0,0.00017808,2]
[335209587,1723979469888,-648.55,0.00017808,2]
[335209588,1723979469899,-500.0,0.00017808,2]
[335209589,1723979469910,-220.11590939,0.00017808,2]
[335209590,1723979469922,-500.0,0.00017808,2]
[335209591,1723979469933,-652.17,0.00017808,2]
[335209592,1723979469943,-500.0,0.00017808,2]
[335209593,1723979469953,-656.44,0.00017808,2]
[335209594,1723979469963,-500.0,0.00017808,2]
[335209595,1723979469973,-500.0,0.00017808,2]
[335209596,1723979469983,-500.0,0.00017808,2]
[335209597,1723979469992,-733.8,0.00017808,2]
[335209598,1723979470001,-500.0,0.00017808,2]
[335209599,1723979470011,-500.0,0.00017808,2]
[335209600,1723979470020,-607.05,0.00017808,2]
[335209601,1723979470030,-500.0,0.00017808,2]
[335209602,1723979470040,-500.0,0.00017808,2]
[335209603,1723979470050,-500.0,0.00017808,2]
[335209604,1723979470059,-500.0,0.00017808,2]
[335209605,1723979470068,-805.33,0.00017808,2]
[335209606,1723979470078,-645.15840733,0.00017808,2]
[335209607,1723979470088,-500.0,0.00017808,2]
[335209608,1723979470098,-566.71,0.00017808,2]
[335209609,1723979470107,-158.50217525,0.00017808,2]
[335209610,1723979470117,-500.0,0.00017808,2]
[335209611,1723979470127,-500.0,0.00017808,2]
[335209612,1723979470137,-500.0,0.00017808,2]
[335209613,1723979470147,-500.0,0.00017808,2]
[335209614,1723979470157,-500.0,0.00017808,2]
[335209615,1723979470167,-500.0,0.00017808,2]
[335209616,1723979470178,-500.0,0.00017808,2]
[335209617,1723979470187,-500.0,0.00017808,2]
[335209618,1723979470197,-500.0,0.00017808,2]
[335209619,1723979470207,-500.0,0.00017808,2]
[335209620,1723979470216,-500.0,0.00017808,2]
[335209621,1723979470225,-500.0,0.00017808,2]
[335209622,1723979470234,-1108.64,0.00017808,2]
[335209623,1723979470243,-500.0,0.00017808,2]
[335209624,1723979470253,-582.5,0.00017808,2]
[335209625,1723979470262,-934.91,0.00017808,2]
[335209626,1723979470271,-500.0,0.00017808,2]
[335209627,1723979470281,-1000.0,0.00017808,2]
[335209628,1723979470291,-500.0,0.00017808,2]
[335209629,1723979470300,-500.0,0.00017808,2]
[335209630,1723979470309,-500.0,0.00017808,2]
[335209631,1723979470319,-885.71,0.00017808,2]
[335209632,1723979470329,-500.0,0.00017808,2]
[335209633,1723979470338,-500.0,0.00017808,2]
[335209634,1723979470348,-500.0,0.00017808,2]
[335209635,1723979470358,-500.0,0.00017808,2]
[335209636,1723979470367,-500.0,0.00017808,2]
[335209637,1723979470377,-709.34,0.00017808,2]
[335209638,1723979470387,-500.0,0.00017808,2]
[335209639,1723979470398,-500.0,0.00017808,2]
[335209640,1723979470408,-500.0,0.00017808,2]
[335209641,1723979470418,-500.0,0.00017808,2]
[335209642,1723979470428,-500.0,0.00017808,2]
[335209643,1723979470438,-694.89,0.00017808,2]
[335209644,1723979470449,-500.0,0.00017808,2]
[335209645,1723979470460,-500.0,0.00017808,2]
[335209646,1723979470470,-936.29,0.00017808,2]
[335209647,1723979470480,-621.07,0.00017808,2]
[335209648,1723979470490,-500.0,0.00017808,2]
[335209649,1723979470500,-500.0,0.00017808,2]
[335209650,1723979470513,-500.0,0.00017808,2]
[335209651,1723979470523,-1214.6,0.00017808,2]
[335209652,1723979470532,-1409.37,0.00017808,2]
[335209653,1723979470542,-500.0,0.00017808,2]
[335209654,1723979470553,-666.89,0.00017808,2]
[335209655,1723979470562,-500.0,0.00017808,2]
[335209656,1723979470571,-500.0,0.00017808,2]
[335209657,1723979470581,-500.0,0.00017808,2]
[335209658,1723979470593,-500.0,0.00017808,2]
[335209659,1723979470604,-500.0,0.00017808,2]
[335209660,1723979470613,-500.0,0.00017808,2]
[335209661,1723979470623,-500.0,0.00017808,2]
[335209662,1723979470633,-1362.27,0.00017808,2]
[335209663,1723979470642,-1133.98,0.00017808,2]
[335209664,1723979470651,-507.40307693,0.00017808,2]
[335209665,1723979470660,-4647.9,0.00017808,2]
[335209666,1723979470670,-603.56,0.00017808,2]
[335209667,1723979470680,-555.08,0.00017808,2]
[335209668,1723979470689,-500.0,0.00017808,2]
[335209669,1723979470700,-500.0,0.00017808,2]
[335209670,1723979470709,-1319.09,0.00017808,2]
[335209671,1723979470719,-500.0,0.00017808,2]
[335209672,1723979470728,-500.0,0.00017808,2]
[335209673,1723979470738,-616.64732154,0.00017808,2]
[335209674,1723979470747,-500.0,0.00017808,2]
[335209675,1723979470757,-500.0,0.00017808,2]
[335209676,1723979470767,-1176.95,0.00017808,2]
[335209677,1723979470776,-500.0,0.00017808,2]
[335209678,1723979470787,-500.0,0.00017808,2]
[335209679,1723979470797,-773.17,0.00017808,2]
[335209680,1723979470808,-2171.88,0.00017808,2]
[335209681,1723979470818,-500.0,0.00017808,2]
[335209682,1723979470830,-595.36,0.00017808,2]
[335209683,1723979470841,-500.0,0.00017808,2]
[335209684,1723979470851,-931.18,0.00017808,2]
[335209685,1723979470862,-665.07,0.00017808,2]
[335209686,1723979470872,-1489.85,0.00017808,2]
[335209687,1723979470881,-3211.23,0.00017808,2]
[335209688,1723979470891,-500.0,0.00017808,2]
[335209689,1723979470900,-500.0,0.00017808,2]
[335209690,1723979470910,-930.16,0.00017808,2]
[335209691,1723979470923,-1997.88,0.00017808,2]
[335209692,1723979470933,-917.17,0.00017808,2]
[335209693,1723979470944,-500.0,0.00017808,2]
[335209694,1723979470954,-500.0,0.00017808,2]
[335209695,1723979470964,-500.0,0.00017808,2]
[335209696,1723979470975,-500.0,0.00017808,2]
[335209697,1723979470984,-500.0,0.00017808,2]
[335209698,1723979470994,-602.66,0.00017808,2]
[335209699,1723979471004,-500.0,0.00017808,2]
[335209700,1723979471013,-213.65771476,0.00017808,2]
[335209701,1723979471023,-500.0,0.00017808,2]
[335209702,1723979471032,-1241.55,0.00017808,2]
[335209703,1723979471041,-643.82,0.00017808,2]
[335209704,1723979471050,-607.78,0.00017808,2]
[335209705,1723979471059,-655.66,0.00017808,2]
[335209706,1723979471068,-7440.18,0.00017808,2]
[335209707,1723979471077,-1029.95,0.00017808,2]
[335209708,1723979471086,-243.73590385,0.00017808,2]
[335209709,1723979471095,-500.0,0.00017808,2]
[335209710,1723979471104,-1019.02,0.00017808,2]
[335209711,1723979471113,-500.0,0.00017808,2]
[335209712,1723979471123,-1026.7,0.00017808,2]
[335209713,1723979471132,-500.0,0.00017808,2]
[335209714,1723979471142,-1063.7,0.00017808,2]
[335209715,1723979471151,-507.47556862,0.00017808,2]
[335209716,1723979471162,-500.0,0.00017808,2]
[335209717,1723979471171,-500.0,0.00017808,2]
[335209718,1723979471181,-500.0,0.00017808,2]
[335209719,1723979471191,-579.89,0.00017808,2]
[335209720,1723979471200,-706.05,0.00017808,2]
[335209721,1723979471210,-668.29,0.00017808,2]
[335209722,1723979471219,-1230.19,0.00017808,2]
[335209723,1723979471229,-500.0,0.00017808,2]
[335209724,1723979471239,-500.0,0.00017808,2]
[335209725,1723979471248,-2221.95,0.00017808,2]
[335209726,1723979471258,-500.0,0.00017808,2]
[335209727,1723979471267,-500.0,0.00017808,2]
[335209728,1723979471276,-2766.47,0.00017808,2]
[335209729,1723979471286,-888.46,0.00017808,2]
[335209730,1723979471295,-500.0,0.00017808,2]
[335209731,1723979471304,-201.396666,0.00017808,2]
[335209732,1723979471313,-201.396666,0.00017808,2]
[335209733,1723979471322,-500.0,0.00017808,2]
[335209734,1723979471332,-837.87,0.00017808,2]
[335209735,1723979471341,-798.58,0.00017808,2]
[335209736,1723979471351,-677.44,0.00017808,2]
[335209737,1723979471360,-699.53,0.00017808,2]
[335209738,1723979471369,-500.0,0.00017808,2]
[335209739,1723979471379,-670.56,0.00017808,2]
[335209740,1723979471388,-500.0,0.00017808,2]
[335209741,1723979471398,-751.19,0.00017808,2]
[335209742,1723979471408,-500.0,0.00017808,2]
[335209743,1723979471418,-500.0,0.00017808,2]
[335209744,1723979471428,-500.0,0.00017808,2]
[335209745,1723979471437,-954.92,0.00017808,2]
[335209746,1723979471446,-759.09,0.00017808,2]
[335209747,1723979471455,-1068.78,0.00017808,2]
[335209748,1723979471464,-750.43,0.00017808,2]
[335209749,1723979471473,-1990.91,0.00017808,2]
[335209750,1723979471483,-880.39,0.00017808,2]
[335209751,1723979471492,-500.0,0.00017808,2]
[335209752,1723979471502,-500.0,0.00017808,2]
[335209753,1723979471515,-500.0,0.00017808,2]
[335209754,1723979471525,-854.51,0.00017808,2]
[335209755,1723979471535,-829.06,0.00017808,2]
[335209756,1723979471545,-500.0,0.00017808,2]
[335209757,1723979471554,-814.14,0.00017808,2]
[335209758,1723979471564,-500.0,0.00017808,2]
[335209759,1723979471573,-757.9,0.00017808,2]
[335209760,1723979471584,-500.0,0.00017808,2]
[335209761,1723979471594,-500.0,0.00017808,2]
[335209762,1723979471604,-500.0,0.00017808,2]
[335209763,1723979471613,-585.03136058,0.00017808,2]
[335209764,1723979471623,-500.0,0.00017808,2]
[335209765,1723979471634,-500.0,0.00017808,2]
[335209766,1723979471643,-500.0,0.00017808,2]
[335209767,1723979471653,-500.0,0.00017808,2]
[335209768,1723979471663,-500.0,0.00017808,2]
[335209769,1723979471675,-715.7,0.00017808,2]
[335209770,1723979471684,-553.34,0.00017808,2]
[335209771,1723979471694,-400.0,0.00017842,2]
[335209772,1723979471703,-400.0,0.00017842,2]
[335209773,1723979471712,-400.0,0.00017842,2]